bitfinex/quotes_SOLUSD_20250806
["timestamp","ask_amount","ask_price","bid_price","bid_amount"]
[1754457782782,0.03,163.75,163.71,0.69]
[1754457782990,0.75,163.75,163.73,8.39612885]
[1754457783165,0.03,163.75,163.72,15.79621557]
[1754457783563,0.03,163.75,163.74,8.39612885]
[1754457783886,0.03,163.75,163.71,15.10621557]
[1754457784054,0.75,163.75,163.71,15.10621557]
[1754457784255,0.75,163.75,163.73,8.39612885]
[1754457784799,0.75,163.75,163.73,13.43741414]
[1754457785208,0.75,163.75,163.71,21.88447666]
[1754457785419,0.03,163.75,163.74,13.43741414]
[1754457785896,0.03,163.75,163.74,14.10741414]
[1754457786274,0.03,163.75,163.74,21.88345876]
[1754457786481,0.03,163.75,163.72,6.77769879]
[1754457786673,0.03,163.75,163.7,115.1]
[1754457786674,0.72,163.74,163.71,15.10621557]
[1754457786861,0.72,163.74,163.73,13.43741414]
[1754457787194,0.03,163.75,163.73,13.43741414]
[1754457787358,0.03,163.75,163.74,13.43741414]
[1754457788789,0.03,163.75,163.73,13.43741414]
[1754457788955,0.75,163.75,163.73,13.43741414]
[1754457789163,0.75,163.75,163.74,13.43741414]
[1754457789361,0.75,163.75,163.73,13.43741414]
[1754457789770,0.75,163.75,163.72,13.43741414]
[1754457790084,0.72,163.74,163.73,13.43741414]
[1754457790960,0.72,163.74,163.71,13.43741414]
[1754457791272,0.72,163.74,163.7,13.43741414]
[1754457791575,45.1,163.73,163.7,13.43741414]
[1754457791766,0.72,163.72,163.7,13.43741414]
[1754457791966,0.72,163.72,163.69,28.60362971]
[1754457792178,0.72,163.71,163.69,15.16621557]
[1754457792398,0.72,163.71,163.69,28.60362971]
[1754457792965,45.1,163.73,163.69,15.83621557]
[1754457793306,45.82,163.73,163.71,13.43741414]
[1754457793464,45.82,163.73,163.69,21.94522692]
[1754457793465,45.1,163.73,163.69,21.94522692]
[1754457793785,45.1,163.73,163.71,13.43741414]
[1754457793988,0.72,163.72,163.7,13.43741414]
[1754457794179,0.72,163.72,163.69,0.06]
[1754457794488,0.72,163.71,163.69,13.49741414]
[1754457794992,0.72,163.7,163.69,0.06]
[1754457795678,6.10803175,163.72,163.69,0.06]
[1754457795986,0.72,163.71,163.69,0.06]
[1754457796162,0.72,163.71,163.69,13.49741414]
[1754457796358,4.10666663,163.72,163.69,0.06]
[1754457796983,0.72,163.71,163.69,13.49741414]
[1754457797175,51.20763317,163.73,163.7,13.43741414]
[1754457797382,0.72,163.72,163.7,13.43741414]
[1754457797679,51.20763317,163.73,163.7,13.43741414]
[1754457797992,0.72,163.72,163.7,13.43741414]
[1754457798567,0.72,163.71,163.69,0.06]
[1754457798898,0.72,163.71,163.69,13.49741414]
[1754457799066,0.72,163.71,163.69,0.06]
[1754457799271,6.82846604,163.71,163.69,0.06]
[1754457799468,45.82,163.73,163.7,13.43741414]
[1754457800274,51.92770338,163.73,163.69,0.73]
[1754457800492,0.72,163.72,163.69,13.49741414]
[1754457800795,0.72,163.72,163.7,13.43741414]
[1754457800993,45.1,163.73,163.69,0.06]
[1754457801195,45.82,163.73,163.7,13.43741414]
[1754457801383,51.20771814,163.73,163.7,13.43741414]
[1754457801589,0.72,163.72,163.7,13.43741414]
[1754457801985,45.1,163.73,163.7,13.43741414]
[1754457802298,45.82,163.73,163.7,13.43741414]
[1754457803093,0.72,163.72,163.7,13.43741414]
[1754457803675,45.82,163.72,163.7,13.43741414]
[1754457804600,0.72,163.71,163.7,13.43741414]
[1754457804824,0.72,163.71,163.69,0.06]
[1754457804981,0.72,163.7,163.69,0.06]
[1754457805971,4.10912003,163.71,163.69,13.49741414]
[1754457806274,51.20803754,163.72,163.69,0.06]
[1754457806485,4.82939767,163.71,163.69,0.06]
[1754457806899,0.72,163.7,163.69,0.06]
[1754457807102,9.12503099,163.7,163.69,0.06]
[1754457807310,35.12503099,163.7,163.69,0.06]
[1754457807610,30.82939767,163.7,163.69,0.06]
[1754457807777,39.23442866,163.7,163.69,0.06]
[1754457808471,45.34316415,163.7,163.69,0.06]
[1754457810387,90.42316415,163.7,163.69,0.06]
[1754457810907,64.42316415,163.7,163.69,1e-08]
[1754457811573,10.93813316,163.7,163.69,1e-08]
[1754457811904,77.90873549,163.7,163.69,1e-08]
[1754457812069,82.01813316,163.7,163.69,1e-08]
[1754457812705,90.42316415,163.7,163.69,1e-08]
[1754457815597,82.01813316,163.7,163.69,1e-08]
[1754457816009,90.42316415,163.7,163.69,1e-08]
[1754457816876,82.01813316,163.7,163.69,1e-08]
[1754457817076,90.42316415,163.7,163.69,1e-08]
[1754457817494,82.01813316,163.7,163.69,1e-08]
[1754457817810,90.42316415,163.7,163.69,1e-08]
[1754457818880,49.18939767,163.7,163.69,1e-08]
[1754457819084,45.06,163.7,163.69,1e-08]
[1754457819497,45.72,163.7,163.69,1e-08]
[1754457820812,54.12503099,163.7,163.69,1e-08]
[1754457821310,64.33627568,163.7,163.69,1e-08]
[1754457822498,90.33627568,163.7,163.69,1e-08]
[1754457822809,64.33627568,163.7,163.69,1e-08]
[1754457823114,72.74130667,163.7,163.69,1e-08]
[1754457823495,72.74130667,163.7,163.67,1e-08]
[1754457823496,8.40503099,163.68,163.67,1e-08]
[1754457823688,57.56754019,163.68,163.67,1e-08]
[1754457823883,39.16754019,163.68,163.67,1e-08]
[1754457824118,84.22754019,163.68,163.67,1e-08]
[1754457824499,75.1625092,163.68,163.67,1e-08]
[1754457824909,84.22754019,163.68,163.67,1e-08]
[1754457825107,75.8225092,163.68,163.67,1e-08]
[1754457825404,81.93199111,163.68,163.67,1e-08]
[1754457826489,90.3370221,163.68,163.67,1e-08]
[1754457827502,64.3370221,163.68,163.67,1e-08]
[1754457827714,67.52354403,163.68,163.67,1e-08]
[1754457827916,72.65347817,163.68,163.67,1e-08]
[1754457828126,75.10168317,163.68,163.67,1e-08]
[1754457829000,26.0,163.65,163.64,0.2]
[1754457829200,83.56754019,163.65,163.64,0.2]
[1754457829522,6.11097531,163.64,163.63,0.2]
[1754457829720,19.2785155,163.64,163.63,0.2]
[1754457831299,8.40503099,163.59,163.58,0.2]
[1754457831506,53.44503099,163.59,163.58,0.2]
[1754457832218,54.10503099,163.59,163.58,0.2]
[1754457832428,45.7,163.59,163.58,0.2]
[1754457832608,53.44503099,163.59,163.58,0.2]
[1754457832813,45.04,163.59,163.58,0.89]
[1754457836359,45.04,163.59,163.58,0.2]
[1754457836733,45.04,163.59,163.58,0.89]
[1754457837031,44.54,163.59,163.58,0.89]
[1754457839514,44.54,163.59,163.58,0.2]
[1754457840910,44.54,163.59,163.58,9.29503099]
[1754457841108,26.0,163.63,163.58,9.29503099]
[1754457841310,49.11328998,163.62,163.59,0.69]
[1754457841510,45.02,163.62,163.6,0.69]
[1754457841711,45.02,163.62,163.61,0.69]
[1754457842437,45.02,163.62,163.61,9.09503099]
[1754457842916,45.02,163.62,163.61,0.69]
[1754457843338,45.02,163.62,163.61,9.09503099]
[1754457844351,45.02,163.63,163.6,8.40503099]
[1754457844524,51.13134891,163.63,163.6,8.40503099]
[1754457844726,45.02,163.63,163.6,9.06503099]
[1754457845045,45.02,163.63,163.61,9.06503099]
[1754457845531,45.02,163.63,163.62,9.06503099]
[1754457845916,45.02,163.63,163.62,8.40503099]
[1754457846334,45.68,163.63,163.61,8.40503099]
[1754457846777,45.02,163.63,163.61,8.40503099]
[1754457847049,45.02,163.63,163.6,8.40503099]
[1754457847241,51.79152367,163.63,163.6,8.40503099]
[1754457847553,51.79152367,163.63,163.59,0.72]
[1754457847765,0.03,163.62,163.6,8.40503099]
[1754457848079,0.03,163.62,163.61,8.40503099]
[1754457848572,0.03,163.62,163.61,9.06503099]
[1754457849431,0.03,163.62,163.61,0.66]
[1754457849674,0.03,163.62,163.61,9.06503099]
[1754457850043,0.03,163.62,163.61,15.17712682]
[1754457850239,0.03,163.62,163.61,30.28334239]
[1754457851672,0.03,163.62,163.61,9.06503099]
[1754457852462,0.03,163.62,163.61,15.17712682]
[1754457852770,0.03,163.62,163.61,30.28334239]
[1754457857386,0.03,163.62,163.61,8.40503099]
[1754457858888,0.03,163.62,163.6,21.2186834]
[1754457859181,0.03,163.62,163.6,15.10621557]
[1754457859476,0.03,163.62,163.61,8.40503099]
[1754457861979,6.33100107,163.64,163.61,8.40503099]
[1754457862457,6.11100107,163.64,163.61,8.40503099]
[1754457862658,8.40503099,163.62,163.59,0.06]
[1754457862843,44.96,163.61,163.59,0.06]
[1754457863976,0.66,163.6,163.59,0.06]
[1754457865452,4.77082618,163.6,163.59,0.06]
[1754457867373,10.88329561,163.6,163.59,0.06]
[1754457868256,4.77082618,163.6,163.59,0.06]
[1754457868668,10.88329561,163.6,163.59,0.06]
[1754457870282,4.11082618,163.6,163.59,0.06]
[1754457871061,10.88329561,163.6,163.59,0.06]
[1754457871261,4.11082618,163.6,163.59,8.46503099]
[1754457871471,4.11082618,163.6,163.59,9.12503099]
[1754457871775,4.77082618,163.6,163.59,0.06]
[1754457871977,10.88329561,163.6,163.59,0.06]
[1754457872975,19.2883266,163.6,163.59,0.06]
[1754457875192,4.11082618,163.6,163.59,0.06]
[1754457875575,4.11082618,163.6,163.59,9.18503099]
[1754457876377,4.11082618,163.6,163.59,0.06]
[1754457876807,10.88329561,163.6,163.59,0.06]
[1754457876993,10.22329561,163.6,163.59,0.06]
[1754457877480,4.11082618,163.6,163.59,8.46503099]
[1754457877671,4.11082618,163.6,163.59,9.18503099]
[1754457879485,4.11082618,163.6,163.59,15.29787407]
[1754457879800,44.93,163.62,163.59,15.29787407]
[1754457880093,44.93,163.62,163.61,8.40503099]
[1754457880302,49.04385985,163.62,163.61,9.12503099]
[1754457880473,4.14385985,163.62,163.61,9.12503099]
[1754457880673,0.03,163.62,163.61,9.12503099]
[1754457880873,4.14385985,163.62,163.61,9.12503099]
[1754457881074,0.03,163.62,163.61,9.12503099]
[1754457881401,4.14385985,163.62,163.61,8.40503099]
[1754457882399,0.03,163.62,163.61,8.40503099]
[1754457882595,4.14385985,163.62,163.61,9.12503099]
[1754457882902,0.03,163.62,163.61,9.12503099]
[1754457883608,0.03,163.62,163.61,0.72]
[1754457883899,0.03,163.62,163.61,15.23712682]
[1754457884103,0.03,163.62,163.61,30.34334239]
[1754457887807,0.03,163.62,163.61,30.95455197]
[1754457888115,0.03,163.64,163.63,23.51124656]
[1754457888305,0.03,163.64,163.63,24.12238143]
[1754457888501,4.11349368,163.69,163.68,8.40503099]
[1754457888685,4.11349368,163.69,163.68,9.12503099]
[1754457889106,44.89,163.7,163.68,9.12503099]
[1754457889329,44.89,163.7,163.66,6.82986451]
[1754457889617,45.55,163.7,163.69,8.40503099]
[1754457889811,49.65756128,163.7,163.69,8.40503099]
[1754457891095,45.55,163.7,163.69,8.40503099]
[1754457891316,49.65409321,163.7,163.69,8.40503099]
[1754457892126,45.55,163.7,163.69,8.40503099]
[1754457892610,49.65281527,163.7,163.69,8.40503099]
[1754457892824,45.55,163.7,163.69,8.40503099]
[1754457893512,45.55,163.7,163.67,15.10621557]
[1754457893714,4.76193879,163.69,163.66,8.40503099]
[1754457893919,0.66,163.68,163.65,8.40503099]
[1754457894130,45.5,163.67,163.65,8.40503099]
[1754457895520,0.66,163.66,163.64,8.40503099]
[1754457896121,0.66,163.65,163.64,8.40503099]
[1754457896416,50.95011881,163.67,163.64,8.40503099]
[1754457896802,0.66,163.66,163.64,8.40503099]
[1754457897402,44.84,163.67,163.64,8.40503099]
[1754457897619,45.5,163.67,163.64,8.40503099]
[1754457897822,50.94988656,163.67,163.65,8.40503099]
[1754457898018,0.66,163.66,163.62,8.40503099]
[1754457898330,4.76109868,163.66,163.62,8.40503099]
[1754457898493,8.40503099,163.64,163.59,0.78]
[1754457898700,45.48,163.63,163.59,8.46503099]
[1754457898896,0.66,163.62,163.59,0.06]
[1754457899207,0.66,163.62,163.6,8.40503099]
[1754457899902,0.66,163.61,163.59,8.46503099]
[1754457900101,0.66,163.6,163.59,8.46503099]
[1754457900304,45.48,163.6,163.59,0.06]
[1754457901118,57.98721293,163.6,163.59,0.06]
[1754457901897,55.69465137,163.6,163.59,0.06]
[1754457905048,51.59246943,163.6,163.59,0.06]
[1754457905432,90.09802393,163.6,163.59,0.06]
[1754457905826,64.09802393,163.6,163.59,1e-08]
[1754457906715,87.60927049,163.6,163.58,1e-08]
[1754457906933,13.2255545,163.59,163.58,1e-08]
[1754457907119,13.2255545,163.59,163.57,1e-08]
[1754457907324,26.0,163.55,163.54,0.06]
[1754457907614,83.3055545,163.55,163.54,0.06]
[1754457907925,90.13989262,163.55,163.54,0.06]
[1754457908426,81.73486163,163.55,163.54,0.06]
[1754457908620,86.03936911,163.55,163.54,0.06]
[1754457909517,90.13547776,163.55,163.54,0.06]
[1754457909832,86.03936911,163.55,163.54,0.06]
[1754457910361,26.0,163.55,163.54,0.06]
[1754457910675,44.8,163.55,163.54,0.06]
[1754457910844,45.52,163.55,163.54,0.06]
[1754457911369,44.8,163.55,163.54,0.06]
[1754457911553,44.8,163.55,163.54,0.77]
[1754457912440,44.8,163.55,163.54,9.17503099]
[1754457912649,44.8,163.56,163.54,9.17503099]
[1754457912846,44.8,163.56,163.55,9.11503099]
[1754457913242,44.8,163.56,163.54,0.06]
[1754457913440,44.8,163.56,163.54,9.17503099]
[1754457913845,44.8,163.56,163.55,8.40503099]
[1754457914178,44.8,163.56,163.55,9.11503099]
[1754457914381,44.3,163.56,163.55,9.11503099]
[1754457914555,44.3,163.56,163.55,0.71]
[1754457914767,44.3,163.56,163.54,0.06]
[1754457914972,44.3,163.56,163.54,8.46503099]
[1754457915143,44.3,163.56,163.54,9.17503099]
[1754457915973,44.3,163.56,163.55,0.71]
[1754457916180,44.3,163.56,163.55,9.11503099]
[1754457916368,44.3,163.56,163.55,8.40503099]
[1754457916683,44.3,163.56,163.55,9.11503099]
[1754457917247,44.3,163.56,163.54,0.06]
[1754457917572,44.3,163.56,163.54,9.17503099]
[1754457918999,44.3,163.56,163.54,0.77]
[1754457919481,44.3,163.56,163.54,9.17503099]
[1754457920066,44.3,163.56,163.54,8.46503099]
[1754457920267,44.3,163.56,163.54,0.06]
[1754457920473,44.3,163.56,163.54,9.17503099]
[1754457921084,44.3,163.56,163.55,8.40503099]
[1754457921385,44.3,163.56,163.55,9.11503099]
[1754457922293,44.3,163.56,163.55,8.40503099]
[1754457924766,44.3,163.56,163.55,9.11503099]
[1754457924961,44.3,163.56,163.54,0.06]
[1754457925187,44.3,163.56,163.55,8.40503099]
[1754457925860,51.57333197,163.58,163.55,8.40503099]
[1754457926474,51.57333197,163.58,163.54,0.06]
[1754457926475,0.72,163.57,163.54,0.06]
[1754457926858,45.46,163.56,163.54,0.06]
[1754457927068,0.72,163.55,163.54,0.06]
[1754457928382,44.74,163.56,163.54,0.06]
[1754457928761,45.46,163.56,163.54,0.06]
[1754457929277,50.85411719,163.56,163.54,0.06]
[1754457929455,0.72,163.55,163.54,0.06]
[1754457930387,50.85411719,163.56,163.54,0.06]
[1754457930584,45.46,163.56,163.54,8.46503099]
[1754457930881,51.57396429,163.56,163.54,0.06]
[1754457931059,0.72,163.55,163.54,0.06]
[1754457931872,5.26262692,163.55,163.54,0.06]
[1754457932383,19.78199603,163.55,163.54,0.06]
[1754457932585,11.37696504,163.55,163.54,0.06]
[1754457933383,11.37825638,163.55,163.54,0.06]
[1754457933691,4.54391826,163.55,163.54,0.06]
[1754457934782,4.54391826,163.55,163.54,0.76]
[1754457935090,44.74,163.56,163.54,9.16503099]
[1754457935259,4.54753524,163.55,163.54,8.46503099]
[1754457935456,4.54753524,163.55,163.54,0.06]
[1754457935654,4.54753524,163.55,163.54,8.46503099]
[1754457935859,4.54784094,163.55,163.54,8.46503099]
[1754457936389,4.54784094,163.55,163.54,0.06]
[1754457936563,4.54784094,163.55,163.54,8.46503099]
[1754457936768,4.54784094,163.55,163.54,9.16503099]
[1754457938192,4.54784094,163.55,163.54,0.76]
[1754457938376,4.54784094,163.55,163.54,8.46503099]
[1754457938689,5.23784094,163.55,163.54,0.06]
[1754457938859,4.54784094,163.55,163.54,0.06]
[1754457939063,4.54784094,163.55,163.54,9.16503099]
[1754457939986,4.54784094,163.55,163.54,0.06]
[1754457940368,9.34545957,163.55,163.54,0.06]
[1754457940686,15.45979769,163.55,163.54,0.06]
[1754457941089,9.34545957,163.55,163.54,0.06]
[1754457941299,15.45979769,163.55,163.54,0.06]
[1754457942001,9.36484857,163.55,163.54,0.06]
[1754457942184,8.67484857,163.55,163.54,0.06]
[1754457942367,8.67829953,163.55,163.54,0.06]
[1754457944087,9.36829953,163.55,163.54,0.06]
[1754457944785,15.48263765,163.55,163.54,0.06]
[1754457946677,9.36829953,163.55,163.54,0.06]
[1754457946882,8.67829953,163.55,163.54,9.16503099]
[1754457947287,8.67829953,163.55,163.54,0.76]
[1754457947596,53.35829953,163.55,163.54,0.76]
[1754457947974,53.35829953,163.55,163.54,9.16503099]
[1754457948196,53.35829953,163.55,163.54,8.46503099]
[1754457948802,8.67829953,163.55,163.54,8.46503099]
[1754457948978,8.67829953,163.55,163.54,30.38595855]
[1754457949183,3.8506809,163.55,163.54,30.99742974]
[1754457949377,0.03,163.56,163.54,30.99742974]
[1754457949608,0.03,163.56,163.55,8.40503099]
[1754457949780,4.12041651,163.59,163.55,23.64124656]
[1754457949979,44.66,163.61,163.55,23.64124656]
[1754457949980,4.12041651,163.6,163.58,8.40503099]
[1754457950187,4.12074886,163.6,163.59,8.53503099]
[1754457950411,4.1182378,163.62,163.59,8.53503099]
[1754457950587,44.66,163.63,163.61,8.40503099]
[1754457950893,4.11809006,163.62,163.59,6.24264062]
[1754457951101,44.66,163.63,163.61,8.40503099]
[1754457951296,4.11594165,163.62,163.61,8.40503099]
[1754457951478,4.80594165,163.62,163.61,8.40503099]
[1754457951882,4.11594165,163.62,163.61,8.40503099]
[1754457952708,4.11594165,163.63,163.61,8.40503099]
[1754457952892,4.11594165,163.63,163.59,6.24281316]
[1754457952893,4.11594165,163.63,163.62,8.40503099]
[1754457953207,0.03,163.64,163.63,15.10621557]
[1754457953393,0.03,163.64,163.63,23.51124656]
[1754457953594,0.03,163.64,163.63,23.64124656]
[1754457954312,0.03,163.64,163.63,23.51124656]
[1754457954681,0.03,163.64,163.61,0.13]
[1754457954881,0.03,163.64,163.63,8.40503099]
[1754457955082,0.03,163.64,163.63,14.51637976]
[1754457955718,0.72,163.64,163.62,8.40503099]
[1754457955898,0.69,163.63,163.62,8.40503099]
[1754457956098,0.69,163.63,163.61,8.40503099]
[1754457956409,0.03,163.64,163.62,8.40503099]
[1754457956600,0.72,163.64,163.63,8.40503099]
[1754457956803,0.72,163.64,163.62,8.40503099]
[1754457957308,0.69,163.63,163.62,8.40503099]
[1754457957617,0.03,163.64,163.62,8.40503099]
[1754457957816,0.03,163.64,163.63,8.40503099]
[1754457958111,0.72,163.64,163.63,8.40503099]
[1754457958299,0.72,163.64,163.59,6.11272823]
[1754457958813,0.69,163.63,163.59,6.11272823]
[1754457959013,0.69,163.63,163.62,8.40503099]
[1754457960289,0.03,163.64,163.62,14.51674624]
[1754457960516,0.03,163.64,163.63,23.51124656]
[1754457960720,0.03,163.64,163.63,23.64124656]
[1754457960898,0.03,163.66,163.65,23.51124656]
[1754457961090,0.03,163.66,163.65,24.12230674]
[1754457961288,0.03,163.7,163.66,15.10621557]
[1754457961506,0.03,163.7,163.69,23.51124656]
[1754457961925,0.03,163.7,163.69,23.61124656]
[1754457962316,0.03,163.7,163.69,15.10621557]
[1754457962623,0.03,163.7,163.69,23.51124656]
[1754457963418,0.03,163.7,163.69,29.62035524]
[1754457964003,0.72,163.7,163.69,23.51124656]
[1754457964433,0.03,163.7,163.69,23.51124656]
[1754457964732,0.03,163.7,163.69,29.72035524]
[1754457968530,0.03,163.72,163.7,15.10621557]
[1754457968826,0.03,163.72,163.71,23.51124656]
[1754457969900,0.03,163.72,163.71,29.6196089]
[1754457970232,0.03,163.72,163.71,74.54393204]
[1754457970710,0.03,163.72,163.71,23.66008891]
[1754457970913,0.72,163.72,163.71,29.6196089]
[1754457971508,0.03,163.72,163.71,29.6196089]
[1754457973024,0.03,163.72,163.71,29.7196089]
[1754457973224,0.03,163.72,163.71,29.6196089]
[1754457975111,0.03,163.72,163.71,29.7196089]
[1754457975938,0.03,163.75,163.72,15.10621557]
[1754457976115,0.03,163.75,163.74,8.40503099]
[1754457976438,0.03,163.75,163.74,97.50503099]
[1754457977330,0.03,163.75,163.74,103.61227418]
[1754457977836,0.03,163.75,163.74,30.6135372]
[1754457978050,0.03,163.77,163.76,41.10621557]
[1754457978260,0.03,163.77,163.76,94.01124656]
[1754457978542,0.1,163.79,163.78,8.40503099]
[1754457978708,0.69,163.78,163.77,15.10621557]
[1754457979041,0.69,163.78,163.77,23.51124656]
[1754457979339,0.1,163.79,163.77,23.51124656]
[1754457979340,0.1,163.79,163.77,29.61707453]
[1754457979538,0.1,163.79,163.78,8.40503099]
[1754457979735,0.1,163.79,163.78,23.51124656]
[1754457979927,0.1,163.79,163.78,68.01124656]
[1754457980515,0.79,163.79,163.78,15.10621557]
[1754457980851,0.79,163.79,163.76,6.10641318]
[1754457980852,0.79,163.79,163.76,15.10621557]
[1754457981372,0.79,163.79,163.78,8.40503099]
[1754457981515,0.1,163.79,163.78,8.40503099]
[1754457982142,0.79,163.79,163.76,21.21257787]
[1754457982324,0.69,163.78,163.76,15.10621557]
[1754457982643,0.1,163.79,163.77,8.40503099]
[1754457982847,0.1,163.79,163.78,8.40503099]
[1754457983218,0.1,163.79,163.76,21.21257524]
[1754457983547,0.79,163.79,163.78,8.40503099]
[1754457983934,0.1,163.79,163.78,8.40503099]
[1754457984710,0.79,163.79,163.78,8.40503099]
[1754457987015,0.1,163.79,163.78,8.40503099]
[1754457987644,0.1,163.79,163.78,14.5107826]
[1754457987820,0.1,163.79,163.78,6.10575161]
[1754457988143,0.1,163.79,163.78,29.71699817]
[1754457990647,0.1,163.79,163.78,38.12202916]
[1754457990844,0.1,163.79,163.78,40.8508173]
[1754457991019,0.03,163.81,163.8,31.91627755]
[1754457991214,0.03,163.81,163.8,76.35627755]
[1754457991536,0.03,163.81,163.8,67.95124656]
[1754457991949,0.03,163.81,163.8,76.35627755]
[1754457992144,0.03,163.81,163.8,76.45627755]
[1754457992340,0.03,163.86,163.81,15.10621557]
[1754457992540,0.03,163.86,163.85,8.40503099]
[1754457992745,0.72,163.86,163.85,23.51124656]
[1754457993448,0.72,163.86,163.85,29.61438967]
[1754457994523,0.72,163.86,163.85,15.10621557]
[1754457994738,0.72,163.86,163.85,8.40503099]
[1754457995034,6.82282487,163.86,163.82,8.40503099]
[1754457995246,0.71,163.85,163.83,8.40503099]
[1754457995830,0.03,163.86,163.84,8.40503099]
[1754457996235,8.40503099,163.9,163.82,44.42]
[1754457996523,9.11503099,163.9,163.86,8.40503099]
[1754457996722,0.71,163.89,163.86,8.40503099]
[1754457996926,9.11503099,163.89,163.84,8.40503099]
[1754457997234,6.10138018,163.9,163.84,8.40503099]
[1754457997235,0.71,163.88,163.84,6.10351562]
[1754457997432,6.10138018,163.9,163.85,15.10621557]
[1754457997640,6.10138018,163.9,163.87,8.40503099]
[1754457997851,6.10138018,163.9,163.85,15.10621557]
[1754457998033,0.71,163.89,163.87,8.40503099]
[1754457998439,0.71,163.89,163.86,8.40503099]
[1754457998646,6.8117822,163.89,163.85,15.10621557]
[1754457998954,0.71,163.88,163.85,15.10621557]
[1754457999162,0.71,163.88,163.85,23.51124656]
[1754457999328,0.71,163.88,163.83,6.10376484]
[1754457999329,0.71,163.88,163.84,8.40503099]
[1754457999529,9.11503099,163.88,163.84,8.40503099]
[1754457999746,0.71,163.87,163.83,15.10621557]
[1754458000060,0.71,163.87,163.83,23.51124656]
[1754458000358,0.71,163.87,163.84,8.40503099]
[1754458000799,0.71,163.87,163.82,15.10621557]
[1754458000943,0.71,163.87,163.85,8.40503099]
[1754458001143,0.71,163.87,163.84,8.40503099]
[1754458001473,0.71,163.86,163.82,15.10621557]
[1754458001655,0.71,163.86,163.84,8.40503099]
[1754458002202,0.74,163.89,163.84,23.51124656]
[1754458002500,0.74,163.89,163.88,8.40503099]
[1754458002645,0.74,163.89,163.87,6.10234965]
[1754458002846,0.74,163.89,163.88,8.40503099]
[1754458003247,0.03,163.89,163.88,23.51124656]
[1754458004361,0.03,163.89,163.88,29.61327243]
[1754458004754,0.03,163.89,163.88,23.51124656]
[1754458004945,0.03,163.89,163.88,29.61327243]
[1754458007077,0.03,163.89,163.88,23.51124656]
[1754458007844,0.03,163.89,163.88,29.61327243]
[1754458010889,0.03,163.89,163.88,15.10621557]
[1754458011060,0.03,163.89,163.88,29.61327243]
[1754458012162,0.03,163.89,163.88,21.20824144]
[1754458012367,0.74,163.89,163.88,23.51124656]
[1754458012888,0.74,163.89,163.88,15.10621557]
[1754458013092,0.74,163.89,163.88,23.51124656]
[1754458013786,0.74,163.89,163.86,8.40503099]
[1754458013990,0.74,163.89,163.87,15.10621557]
[1754458014190,0.74,163.89,163.87,23.51124656]
[1754458014374,0.71,163.88,163.87,23.51124656]
[1754458014765,0.03,163.89,163.87,29.61333946]
[1754458014972,0.03,163.89,163.88,8.40503099]
[1754458015180,0.74,163.89,163.88,8.40503099]
[1754458017193,0.74,163.89,163.87,15.10621557]
[1754458017379,0.74,163.89,163.88,8.40503099]
[1754458017580,0.74,163.89,163.87,8.40503099]
[1754458017782,0.74,163.89,163.86,8.40503099]
[1754458017986,0.74,163.89,163.87,8.40503099]
[1754458018782,0.71,163.88,163.87,8.40503099]
[1754458018983,0.71,163.88,163.85,15.10621557]
[1754458019187,0.71,163.88,163.85,29.61429207]
[1754458019376,0.03,163.89,163.86,8.40503099]
[1754458019575,0.71,163.87,163.86,8.40503099]
[1754458019894,0.71,163.87,163.85,23.51124656]
[1754458020274,0.71,163.87,163.83,8.40503099]
[1754458020275,0.71,163.86,163.83,8.40503099]
[1754458020475,9.11503099,163.86,163.82,6.10153]